fUST/lending_fUST_20250924
["ID","MTS","AMOUNT","RATE_DAILY","PERIOD"]
[387374319,1758707446087,-500.0,0.00021578,2]
[387374321,1758707446098,-501.48019114,0.00021584,2]
[387374323,1758707446110,-500.0,0.000216,2]
[387374325,1758707446119,-500.0,0.000216,2]
[387374326,1758707446139,-500.0,0.00021607,2]
[387374327,1758707446167,-500.0,0.00021607,2]
[387374328,1758707446182,-626.34630305,0.00021607,2]
[387374329,1758707446192,-500.0,0.00021607,2]
[387374330,1758707446202,-500.0,0.00021607,2]
[387374331,1758707446212,-501.74539357,0.00021607,2]
[387374332,1758707446221,-500.0,0.00021607,2]
[387374333,1758707446231,-500.0,0.00021607,2]
[387374334,1758707446242,-252.0,0.00021653,2]
[387374335,1758707446251,-168.0,0.00021672,2]
[387374336,1758707446260,-480.0,0.00021681,2]
[387374338,1758707446269,-480.0,0.00021681,2]
[387374340,1758707446279,-480.0,0.00021681,2]
[387374342,1758707446288,-480.0,0.00021681,2]
[387374344,1758707446297,-480.68,0.00021681,2]
[387374346,1758707446306,-1093.29,0.00021681,2]
[387374347,1758707446316,-480.0,0.00021681,2]
[387374349,1758707446325,-480.0,0.00021682,2]
[387374351,1758707446334,-480.0,0.00021682,2]
[387374352,1758707446343,-480.0,0.00021682,2]
[387374354,1758707446352,-480.0,0.00021682,2]
[387374356,1758707446361,-2433.11,0.00021682,2]
[387374358,1758707446370,-480.0,0.00021682,2]
[387374360,1758707446380,-480.0,0.00021682,2]
[387374361,1758707446389,-950.85,0.00021682,2]
[387374363,1758707446398,-1372.31,0.00021682,2]
[387374365,1758707446407,-1505.98,0.00021682,2]
[387374367,1758707446417,-480.0,0.00021682,2]
[387374369,1758707446426,-480.0,0.00021682,2]
[387374371,1758707446435,-480.0,0.00021682,2]
[387374372,1758707446444,-592.80162402,0.00021682,2]
[387374373,1758707446454,-480.0,0.00021682,2]
[387374374,1758707446463,-528.2,0.00021682,2]
[387374375,1758707446473,-480.0,0.00021682,2]
[387374376,1758707446482,-480.0,0.00021682,2]
[387374377,1758707446491,-480.0,0.00021682,2]
[387374378,1758707446501,-546.04162038,0.00021682,2]
[387374379,1758707446510,-799.73,0.00021682,2]
[387374380,1758707446519,-480.0,0.00021682,2]
[387374381,1758707446528,-480.0,0.00021682,2]
[387374382,1758707446538,-480.0,0.00021682,2]
[387374383,1758707446548,-480.0,0.00021682,2]
[387374384,1758707446558,-627.43,0.00021682,2]
[387374385,1758707446567,-617.26,0.00021682,2]
[387374386,1758707446577,-480.0,0.00021682,2]
[387374387,1758707446586,-480.0,0.00021682,2]
[387374388,1758707446595,-1030.38,0.00021682,2]
[387374389,1758707446604,-480.0,0.00021682,2]
[387374390,1758707446613,-480.0,0.00021682,2]
[387374391,1758707446623,-1355.19,0.00021682,2]
[387374392,1758707446632,-2729.88,0.00021682,2]
[387374393,1758707446642,-480.0,0.00021682,2]
[387374394,1758707446651,-1164.38,0.00021682,2]
[387374395,1758707446660,-631.11,0.00021683,2]
[387374396,1758707446670,-480.0,0.00021683,2]
[387374397,1758707446680,-480.0,0.00021683,2]
[387374398,1758707446689,-480.0,0.00021683,2]
[387374399,1758707446699,-901.83,0.00021683,2]
[387374400,1758707446708,-1440.31,0.00021683,2]
[387374401,1758707446716,-480.0,0.00021683,2]
[387374402,1758707446726,-480.0,0.00021683,2]
[387374403,1758707446735,-2517.39,0.00021683,2]
[387374404,1758707446744,-480.0,0.00021683,2]
[387374405,1758707446753,-442.43,0.00021683,2]
[387374406,1758707446762,-1162.04,0.00021683,2]
[387374407,1758707446771,-480.0,0.00021683,2]
[387374408,1758707446781,-480.0,0.00021683,2]
[387374409,1758707446791,-2996.54,0.00021683,2]
[387374410,1758707446799,-480.0,0.00021683,2]
[387374411,1758707446809,-608.81,0.00021683,2]
[387374412,1758707446818,-5048.94,0.00021684,2]
[387374413,1758707446827,-2136.74,0.00021684,2]
[387374414,1758707446837,-857.2,0.00021684,2]
[387374415,1758707446846,-405.5850292,0.00021685,2]
[387374416,1758707446855,-151.0,0.00021685,2]
[387374417,1758707446864,-480.0,0.00021685,2]
[387374418,1758707446874,-480.0,0.00021685,2]
[387374419,1758707446883,-916.67,0.00021685,2]
[387374420,1758707446893,-480.0,0.00021685,2]
[387374421,1758707446902,-1235.41,0.00021685,2]
[387374422,1758707446911,-151.0,0.000217,3]
[387374423,1758707446922,-500.0,0.000217,2]
[387374424,1758707446931,-502.30335504,0.00021746,2]
[387374425,1758707446940,-500.98096882,0.00021746,2]
[387374426,1758707446950,-360.0,0.00021865,2]
[387374427,1758707446959,-4400.57741699,0.00021905,2]
[387374428,1758707446968,-7815.42549258,0.00021905,2]
[387374429,1758707446977,-341.82742117,0.00021905,2]
[387374430,1758707446986,-1365.942375,0.00021905,2]
[387374431,1758707446996,-153.0,0.00021918,2]
[387374432,1758707447005,-153.0,0.00021918,2]
[387374433,1758707447016,-151.0,0.00021918,2]
[387374434,1758707447027,-248.0,0.00021918,2]
[387374435,1758707447037,-532.2324375,0.00021932,2]
[387374436,1758707447046,-160.0,0.00021932,2]
[387374437,1758707447056,-233.62170814,0.00021932,2]
[387374438,1758707447066,-160.0,0.00021932,2]
[387374439,1758707447131,-160.0,0.00021932,2]
[387374440,1758707447140,-417.15472785,0.00021932,2]
[387374441,1758707447149,-160.0,0.00021932,2]
[387374442,1758707447158,-160.0,0.00021932,2]
[387374443,1758707447167,-160.0,0.00021932,2]
[387374444,1758707447177,-480.0,0.00021955,2]
[387374445,1758707447186,-480.0,0.00021955,2]
[387374446,1758707447196,-480.0,0.00021955,2]
[387374447,1758707447205,-480.68,0.00021955,2]
[387374448,1758707447214,-1093.29,0.00021955,2]
[387374449,1758707447223,-480.0,0.00021955,2]
[387374450,1758707447232,-4470.9465442,0.00021956,2]
[387374451,1758707447241,-480.0,0.00021956,2]
[387374452,1758707447251,-480.0,0.00021956,2]
[387374453,1758707447260,-480.0,0.00021956,2]
[387374454,1758707447270,-480.0,0.00021956,2]
[387374455,1758707447279,-850.62995876,0.00021956,2]
[387374456,1758707447370,-1582.48004124,0.00021956,2]
[387374457,1758707447379,-480.0,0.00021956,2]
[387374458,1758707447388,-480.0,0.00021956,2]
[387374459,1758707447397,-391.31547836,0.00021956,2]
[387374460,1758707447418,-480.0,0.00020312,2]
[387374461,1758707447427,-559.53452164,0.00021956,2]
[387374462,1758707447437,-1372.31,0.00021956,2]
[387374463,1758707447446,-1505.98,0.00021956,2]
[387374464,1758707447455,-480.0,0.00021956,2]
[387374465,1758707447464,-480.0,0.00021956,2]
[387374466,1758707447474,-480.0,0.00021956,2]
[387374467,1758707447483,-480.0,0.00021956,2]
[387374469,1758707447492,-528.2,0.00021956,2]
[387374470,1758707447501,-480.0,0.00021956,2]
[387374472,1758707447510,-480.0,0.00021956,2]
[387374473,1758707447519,-480.0,0.00021956,2]
[387374475,1758707447528,-799.73,0.00021956,2]
[387374477,1758707447537,-462.18141502,0.00021956,2]
[387374479,1758707447546,-480.0,0.00021956,2]
[387374480,1758707447555,-480.0,0.00021956,2]
[387374482,1758707447564,-480.0,0.00021956,2]
[387374484,1758707447573,-627.43,0.00021956,2]
[387374485,1758707447582,-617.26,0.00021956,2]
[387374487,1758707447591,-480.0,0.00021956,2]
[387374489,1758707447601,-480.0,0.00021956,2]
[387374491,1758707447610,-1030.38,0.00021956,2]
[387374492,1758707447619,-480.0,0.00021956,2]
[387374494,1758707447629,-234.23141258,0.00021956,2]
[387374496,1758707447640,-245.76858742,0.00021956,2]
[387374498,1758707447649,-466.96015816,0.00021956,2]
[387374507,1758707447932,-5000.0,0.00019024,2]
[387374508,1758707447941,-153.366547,0.00019352,2]
[387374509,1758707447951,-480.0,0.00020586,2]
[387374510,1758707447960,-1955.81218533,0.0002081,2]
[387374511,1758707447970,-480.0,0.0002086,2]
[387374512,1758707447979,-480.0,0.00021134,2]
[387374513,1758707447988,-480.0,0.00021408,2]
[387374514,1758707447998,-480.0,0.00021682,2]
[387374515,1758707448007,-888.22984184,0.00021956,2]
[387374516,1758707448018,-2729.88,0.00021956,2]
[387374517,1758707448090,-480.0,0.00021956,2]
[387374518,1758707448103,-1164.38,0.00021956,2]
[387374519,1758707448113,-480.0,0.00021956,2]
[387374520,1758707448124,-631.11,0.00021957,2]
[387374521,1758707448134,-480.0,0.00021957,2]
[387374522,1758707448144,-480.0,0.00021957,2]
[387374523,1758707448154,-480.0,0.00021957,2]
[387374524,1758707448164,-901.83,0.00021957,2]
[387374525,1758707448175,-480.0,0.00021957,2]
[387374526,1758707448185,-480.0,0.00021957,2]
[387374527,1758707448195,-2517.39,0.00021957,2]
[387374528,1758707448205,-480.0,0.00021957,2]
[387374529,1758707448214,-1162.04,0.00021957,2]
[387374530,1758707448224,-480.0,0.00021957,2]
[387374531,1758707448233,-480.0,0.00021957,2]
[387374532,1758707448242,-2996.54,0.00021957,2]
[387374533,1758707448252,-480.0,0.00021957,2]
[387374534,1758707448262,-608.81,0.00021957,2]
[387374535,1758707448271,-5048.94,0.00021958,2]
[387374536,1758707448281,-2136.74,0.00021958,2]
[387374537,1758707448291,-857.2,0.00021958,2]
[387374538,1758707448300,-480.0,0.00021959,2]
[387374539,1758707448310,-480.0,0.00021959,2]
[387374540,1758707448320,-916.67,0.00021959,2]
[387374541,1758707448331,-272.62969358,0.00021959,2]
[387374542,1758707448341,-1235.41,0.00021959,2]
[387374543,1758707448354,-169.154,0.00021962,2]
[387374544,1758707448364,-151.0,0.00022,4]
[387374545,1758707448375,-191.13,0.00022,2]
[387374546,1758707448386,-6000.0,0.00022026,2]
[387374547,1758707448399,-1001.4443439,0.00022035,2]
[387374548,1758707448415,-1001.21531768,0.00022035,2]
[387374549,1758707448437,-2330.30651567,0.00022044,2]
[387374550,1758707448460,-1000.0,0.00022096,2]
[387374551,1758707448475,-228.09157682,0.00022096,2]
[387374552,1758707448486,-506.20193197,0.00022096,2]
[387374553,1758707448497,-2500.0,0.00022112,2]
[387374554,1758707448508,-2500.0,0.00022112,2]
[387374555,1758707448519,-506.36733719,0.00022122,2]
[387374556,1758707448530,-1001.0842112,0.00022122,2]
[387374557,1758707448539,-500.0,0.00022125,2]
[387374558,1758707448549,-534.8564624,0.00022125,2]
[387374559,1758707448559,-668.91141863,0.00022125,2]
[387374560,1758707448569,-1002.05949899,0.00022125,2]
[387374561,1758707448579,-1000.0,0.00022125,2]
[387374562,1758707448589,-1001.26035199,0.00022125,2]
[387374563,1758707448598,-1000.0,0.00022125,2]
[387374564,1758707448608,-502.51806416,0.00022125,2]
[387374565,1758707448618,-1000.0,0.00022125,2]
[387374566,1758707448628,-1002.49021857,0.00022125,2]
[387374567,1758707448638,-503.79149119,0.00022125,2]
[387374568,1758707448648,-1000.0,0.00022125,2]
[387374569,1758707448657,-1000.0,0.00022125,2]
[387374570,1758707448669,-762.95127728,0.00022125,2]
[387374571,1758707448679,-1000.0,0.00022125,2]
[387374572,1758707448689,-323.28382779,0.00022125,2]
[387374573,1758707448700,-617.12592652,0.00022126,2]
[387374574,1758707448711,-769.30006201,0.00022126,2]
[387374575,1758707448721,-1001.06090765,0.00022126,2]
[387374576,1758707448732,-1006.62391648,0.00022126,2]
[387374577,1758707448743,-500.0,0.00022126,2]
[387374578,1758707448754,-523.72767233,0.00022126,2]
[387374579,1758707448765,-502.77356058,0.00022126,2]
[387374580,1758707448776,-1000.0,0.00022126,2]
[387374581,1758707448787,-1000.0,0.00022126,2]
[387374582,1758707448797,-1002.48220447,0.00022126,2]
[387374583,1758707448807,-1000.96190257,0.00022126,2]
[387374584,1758707448817,-644.81309437,0.00022126,2]
[387374585,1758707448827,-1000.0,0.00022126,2]
[387374586,1758707448838,-1000.0,0.00022126,2]
[387374587,1758707448848,-168.0,0.00022134,2]
[387374588,1758707448857,-1000.0,0.00022148,2]
[387374589,1758707448868,-1000.0,0.00022148,2]
[387374590,1758707448878,-1001.05842024,0.00022155,2]
[387374591,1758707448887,-868.02443512,0.00022155,2]
[387374592,1758707448897,-477.27554546,0.00022155,2]
[387374593,1758707448907,-1001.54259938,0.00022155,2]
[387374594,1758707448917,-1000.0,0.00022155,2]
[387374595,1758707448927,-211.61879246,0.00022155,2]
[387374596,1758707448937,-6989.91,0.00022224,2]
[387374597,1758707448950,-168.83774966,0.00022229,2]
[387374598,1758707448959,-480.0,0.00022229,2]
[387374599,1758707448969,-480.0,0.00022229,2]
[387374600,1758707448979,-480.68,0.00022229,2]
[387374601,1758707448988,-1093.29,0.00022229,2]
[387374602,1758707448998,-480.0,0.00022229,2]
[387374603,1758707449008,-480.0,0.0002223,2]
[387374604,1758707449018,-480.0,0.0002223,2]
[387374605,1758707449031,-480.0,0.0002223,2]
[387374606,1758707449042,-480.0,0.0002223,2]
[387374607,1758707449051,-2433.11,0.0002223,2]
[387374608,1758707449061,-480.0,0.0002223,2]
[387374609,1758707449071,-950.85,0.0002223,2]
[387374610,1758707449080,-1372.31,0.0002223,2]
[387374611,1758707449090,-1505.98,0.0002223,2]
[387374612,1758707449101,-480.0,0.0002223,2]
[387374613,1758707449112,-480.0,0.0002223,2]
[387374614,1758707449121,-480.0,0.0002223,2]
[387374615,1758707449131,-480.0,0.0002223,2]
[387374616,1758707449140,-528.2,0.0002223,2]
[387374617,1758707449149,-480.0,0.0002223,2]
[387374618,1758707449212,-480.0,0.0002223,2]
[387374619,1758707449222,-480.0,0.0002223,2]
[387374620,1758707449231,-799.73,0.0002223,2]
[387374621,1758707449240,-480.0,0.0002223,2]
[387374622,1758707449250,-480.0,0.0002223,2]
[387374623,1758707449259,-627.43,0.0002223,2]
[387374624,1758707449269,-617.26,0.0002223,2]
[387374625,1758707449279,-480.0,0.0002223,2]
[387374626,1758707449289,-480.0,0.0002223,2]
[387374627,1758707449298,-1030.38,0.0002223,2]
[387374628,1758707449308,-480.0,0.0002223,2]
[387374629,1758707449317,-480.0,0.0002223,2]
[387374630,1758707449327,-1355.19,0.0002223,2]
[387374631,1758707449336,-2729.88,0.0002223,2]
[387374632,1758707449353,-480.0,0.0002223,2]
[387374633,1758707449368,-1164.38,0.0002223,2]
[387374634,1758707449383,-480.0,0.0002223,2]
[387374635,1758707449394,-631.11,0.00022231,2]
[387374636,1758707449403,-480.0,0.00022231,2]
[387374637,1758707449413,-574.40069147,0.00022231,2]
[387374638,1758707449423,-480.0,0.00022231,2]
[387374639,1758707449432,-901.83,0.00022231,2]
[387374640,1758707449442,-480.0,0.00022231,2]
[387374641,1758707449451,-480.0,0.00022231,2]
[387374642,1758707449460,-2517.39,0.00022231,2]
[387374643,1758707449470,-480.0,0.00022231,2]
[387374644,1758707449479,-1162.04,0.00022231,2]
[387374645,1758707449489,-480.0,0.00022231,2]
[387374646,1758707449499,-480.0,0.00022231,2]
[387374647,1758707449508,-2996.54,0.00022231,2]
[387374648,1758707449517,-480.0,0.00022231,2]
[387374649,1758707449528,-608.81,0.00022231,2]
[387374650,1758707449537,-5048.94,0.00022232,2]
[387374651,1758707449547,-2136.74,0.00022232,2]
[387374652,1758707449556,-857.2,0.00022232,2]
[387374653,1758707449566,-480.0,0.00022233,2]
[387374654,1758707449576,-480.0,0.00022233,2]
[387374655,1758707449586,-916.67,0.00022233,2]
[387374656,1758707449596,-1235.41,0.00022233,2]
[387374657,1758707449605,-1000.0,0.00022248,2]
[387374658,1758707449615,-3262.0,0.00022256,2]
[387374659,1758707449625,-460.0,0.00022413,2]
[387374660,1758707449634,-480.0,0.00022503,2]
[387374661,1758707449644,-480.0,0.00022503,2]
[387374662,1758707449654,-480.68,0.00022503,2]
[387374663,1758707449663,-1093.29,0.00022503,2]
[387374664,1758707449673,-175.42703197,0.00022503,2]
[387374665,1758707449683,-480.0,0.00022504,2]
[387374666,1758707449693,-480.0,0.00022504,2]
[387374667,1758707449702,-480.0,0.00022504,2]
[387374668,1758707449711,-480.0,0.00022504,2]
[387374669,1758707449721,-2433.11,0.00022504,2]
[387374670,1758707449731,-480.0,0.00022504,2]
[387374671,1758707449740,-950.85,0.00022504,2]
[387374672,1758707449749,-1372.31,0.00022504,2]
[387374673,1758707449759,-1505.98,0.00022504,2]
[387374674,1758707449768,-480.0,0.00022504,2]
[387374675,1758707449777,-226.29355246,0.00022504,2]
[387374676,1758707449786,-480.0,0.00022504,2]
[387374677,1758707449796,-480.0,0.00022504,2]
[387374678,1758707449805,-528.2,0.00022504,2]
[387374679,1758707449814,-480.0,0.00022504,2]
[387374680,1758707449823,-480.0,0.00022504,2]
[387374681,1758707449833,-480.0,0.00022504,2]
[387374682,1758707449842,-799.73,0.00022504,2]
[387374683,1758707449852,-480.0,0.00022504,2]
[387374684,1758707449862,-480.0,0.00022504,2]
[387374685,1758707449871,-627.43,0.00022504,2]
[387374686,1758707449881,-617.26,0.00022504,2]
[387374687,1758707449890,-480.0,0.00022504,2]
[387374688,1758707449900,-480.0,0.00022504,2]
[387374689,1758707449909,-1030.38,0.00022504,2]
[387374690,1758707449919,-480.0,0.00022504,2]
[387374691,1758707449928,-480.0,0.00022504,2]
[387374692,1758707449938,-1355.19,0.00022504,2]
[387374693,1758707449947,-2729.88,0.00022504,2]
[387374694,1758707449957,-480.0,0.00022504,2]
[387374695,1758707449966,-1164.38,0.00022504,2]
[387374696,1758707449975,-480.0,0.00022504,2]
[387374697,1758707449985,-631.11,0.00022505,2]
[387374698,1758707449994,-480.0,0.00022505,2]
[387374699,1758707450003,-480.0,0.00022505,2]
[387374700,1758707450012,-901.83,0.00022505,2]
[387374701,1758707450024,-480.0,0.00022505,2]
[387374702,1758707450035,-480.0,0.00022505,2]
[387374703,1758707450044,-2517.39,0.00022505,2]
[387374704,1758707450054,-480.0,0.00022505,2]
[387374705,1758707450066,-1162.04,0.00022505,2]
[387374706,1758707450075,-480.0,0.00022505,2]
[387374707,1758707450084,-2996.54,0.00022505,2]
[387374708,1758707450094,-480.0,0.00022505,2]
[387374709,1758707450105,-608.81,0.00022505,2]
[387374710,1758707450114,-5048.94,0.00022506,2]
[387374711,1758707450175,-2136.74,0.00022506,2]
[387374712,1758707450185,-857.2,0.00022506,2]
[387374713,1758707450195,-144.91695541,0.00022507,2]
[387374714,1758707450209,-335.08304459,0.00022507,2]
[387374715,1758707450218,-480.0,0.00022507,2]
[387374716,1758707450228,-916.67,0.00022507,2]
[387374717,1758707450237,-1235.41,0.00022507,2]
[387374718,1758707450247,-151.0,0.00022511,2]
[387374719,1758707450256,-151.0,0.00022511,2]
[387374720,1758707450265,-500.0,0.00022511,2]
[387374721,1758707450275,-151.0,0.00022511,2]
[387374722,1758707450284,-170.12437379,0.00022511,2]
[387374723,1758707450294,-151.0,0.00022511,2]
[387374724,1758707450304,-198.91630416,0.00022511,2]
[387374725,1758707450313,-202.07532585,0.00022511,2]
[387374726,1758707450324,-500.0,0.00022511,2]
[387374727,1758707450337,-151.0,0.00022511,2]
[387374728,1758707450347,-151.0,0.00022511,2]
[387374729,1758707450357,-151.0,0.00022511,2]
[387374730,1758707450366,-748.54628867,0.00022523,2]
[387374731,1758707450375,-3262.0,0.00022549,2]
[387374732,1758707450385,-500.0,0.00022604,2]
[387374733,1758707450395,-184.56844032,0.00022626,2]
[387374734,1758707450404,-500.0,0.00022644,2]
[387374735,1758707450414,-168.0,0.00022666,2]
[387374736,1758707450424,-593.99282374,0.00022673,2]
[387374737,1758707450433,-1500.0,0.00022673,2]
[387374738,1758707450443,-1500.0,0.00022673,2]
[387374739,1758707450452,-1001.70008587,0.00022673,2]
[387374740,1758707450461,-1500.0,0.00022673,2]
[387374741,1758707450470,-505.66910882,0.00022673,2]
[387374742,1758707450481,-1500.0,0.00022674,2]
[387374743,1758707450490,-176.83480412,0.00022674,2]
[387374744,1758707450499,-482.0170827,0.00022674,2]
[387374745,1758707450508,-1001.32307387,0.00022674,2]
[387374746,1758707450517,-1500.0,0.00022696,2]
[387374747,1758707450527,-1500.0,0.00022696,2]
[387374748,1758707450536,-501.55886758,0.00022703,2]
[387374749,1758707450545,-168.0,0.00022738,2]
[387374750,1758707450555,-500.77063762,0.00022766,2]
[387374751,1758707450564,-310.0,0.00022776,2]
[387374752,1758707450574,-480.0,0.00022777,2]
[387374753,1758707450586,-480.0,0.00022777,2]
[387374754,1758707450605,-480.68,0.00022777,2]
[387374755,1758707450622,-1093.29,0.00022777,2]
[387374756,1758707450640,-480.0,0.00022778,2]
[387374757,1758707450658,-480.0,0.00022778,2]
[387374758,1758707450676,-480.0,0.00022778,2]
[387374759,1758707450693,-480.0,0.00022778,2]
[387374760,1758707450710,-2433.11,0.00022778,2]
[387374761,1758707450724,-480.0,0.00022778,2]
[387374762,1758707450743,-950.85,0.00022778,2]
[387374763,1758707450762,-1372.31,0.00022778,2]
[387374764,1758707450779,-1505.98,0.00022778,2]
[387374765,1758707450791,-480.0,0.00022778,2]
[387374766,1758707450810,-612.67858368,0.00022778,2]
[387374767,1758707450824,-480.0,0.00022778,2]
[387374768,1758707450839,-528.2,0.00022778,2]
[387374769,1758707450853,-480.0,0.00022778,2]
[387374770,1758707450869,-480.0,0.00022778,2]
[387374771,1758707450883,-480.0,0.00022778,2]
[387374772,1758707450897,-799.73,0.00022778,2]
[387374773,1758707450912,-480.0,0.00022778,2]
[387374774,1758707450927,-480.0,0.00022778,2]
[387374775,1758707450941,-627.43,0.00022778,2]
[387374776,1758707450956,-617.26,0.00022778,2]
[387374777,1758707450965,-480.0,0.00022778,2]
[387374778,1758707450974,-480.0,0.00022778,2]
[387374779,1758707450983,-1030.38,0.00022778,2]
[387374780,1758707450993,-480.0,0.00022778,2]
[387374781,1758707451002,-480.0,0.00022778,2]
[387374782,1758707451011,-1355.19,0.00022778,2]
[387374783,1758707451025,-2729.88,0.00022778,2]
[387374784,1758707451035,-480.0,0.00022778,2]
[387374785,1758707451045,-1164.38,0.00022778,2]
[387374786,1758707451054,-480.0,0.00022778,2]
[387374787,1758707451063,-631.11,0.00022779,2]
[387374788,1758707451073,-480.0,0.00022779,2]
[387374789,1758707451082,-480.0,0.00022779,2]
[387374790,1758707451092,-901.83,0.00022779,2]
[387374791,1758707451101,-480.0,0.00022779,2]
[387374792,1758707451111,-2517.39,0.00022779,2]
[387374793,1758707451121,-480.0,0.00022779,2]
[387374794,1758707451130,-1162.04,0.00022779,2]
[387374795,1758707451140,-290.27286449,0.00022779,2]
[387374796,1758707451297,-2996.54,0.00022779,2]
[387374797,1758707451310,-480.0,0.00022779,2]
[387374798,1758707451320,-608.81,0.00022779,2]
[387374799,1758707451329,-5048.94,0.0002278,2]
[387374800,1758707451338,-2136.74,0.0002278,2]
[387374801,1758707451347,-857.2,0.0002278,2]
[387374802,1758707451357,-480.0,0.00022781,2]
[387374803,1758707451366,-480.0,0.00022781,2]
[387374804,1758707451375,-916.67,0.00022781,2]
[387374805,1758707451385,-1235.41,0.00022781,2]
[387374806,1758707451394,-151.0,0.00022785,2]
[387374807,1758707451403,-500.0,0.00022785,2]
[387374808,1758707451413,-151.0,0.00022785,2]
[387374809,1758707451422,-151.0,0.00022785,2]
[387374810,1758707451432,-500.0,0.00022785,2]
[387374811,1758707451441,-151.0,0.00022785,2]
[387374812,1758707451450,-5000.0,0.00022876,2]
[387374813,1758707451459,-991.429,0.00022947,2]
[387374814,1758707451469,-2159.0,0.00022947,2]
[387374815,1758707451479,-635.0,0.00022947,2]
[387374816,1758707451489,-4593.0,0.00022947,2]
[387374817,1758707451498,-168.0,0.0002295,2]
[387374818,1758707451508,-560.0,0.00022961,2]
[387374819,1758707451517,-2379.8704955,0.00023,2]
[387374820,1758707451527,-5349.35390627,0.00023,2]
[387374821,1758707451537,-160.0,0.00023,2]
[387374822,1758707451546,-353.40871788,0.00023,2]
[387374823,1758707451555,-1412.22123666,0.00023,2]
[387374824,1758707451565,-191.13,0.00023,2]
[387374825,1758707451574,-480.0,0.00023051,2]
[387374826,1758707451583,-480.68,0.00023051,2]
[387374827,1758707451593,-1093.29,0.00023051,2]
[387374828,1758707451602,-480.0,0.00023052,2]
[387374829,1758707451611,-480.0,0.00023052,2]
[387374830,1758707451620,-480.0,0.00023052,2]
[387374831,1758707451629,-2433.11,0.00023052,2]
[387374832,1758707451639,-480.0,0.00023052,2]
[387374833,1758707451648,-950.85,0.00023052,2]
[387374834,1758707451659,-1372.31,0.00023052,2]
[387374835,1758707451668,-1505.98,0.00023052,2]
[387374836,1758707451678,-480.0,0.00023052,2]
[387374837,1758707451687,-480.0,0.00023052,2]
[387374838,1758707451696,-528.2,0.00023052,2]
[387374839,1758707451706,-480.0,0.00023052,2]
[387374840,1758707451716,-480.0,0.00023052,2]
[387374841,1758707451725,-480.0,0.00023052,2]
[387374842,1758707451734,-799.73,0.00023052,2]
[387374843,1758707451743,-296.33650876,0.00023052,2]
[387374844,1758707451752,-480.0,0.00023052,2]
[387374845,1758707451761,-627.43,0.00023052,2]
[387374846,1758707451772,-617.26,0.00023052,2]
[387374847,1758707451781,-480.0,0.00023052,2]
[387374848,1758707451792,-480.0,0.00023052,2]
[387374849,1758707451802,-1030.38,0.00023052,2]
[387374850,1758707451812,-480.0,0.00023052,2]
[387374851,1758707451821,-480.0,0.00023052,2]
[387374852,1758707451830,-1355.19,0.00023052,2]
[387374853,1758707451839,-2729.88,0.00023052,2]
[387374854,1758707451849,-480.0,0.00023052,2]
[387374855,1758707451857,-1164.38,0.00023052,2]
[387374856,1758707451866,-480.0,0.00023052,2]
[387374857,1758707451876,-631.11,0.00023053,2]
[387374858,1758707451885,-502.2268795,0.00023053,2]